[Event "Serbian League 2024"]
[Site "Bajina Basta"]
[Date "2024.09.29"]
[Round "3.20"]
[White "Djukic, Nikola"]
[Black "Eren, Ataberk"]
[Result "1/2-1/2"]
[ECO "C84"]
[WhiteElo "2515"]
[BlackElo "2386"]
[Annotator "TA"]
[PlyCount "84"]
[EventDate "2024.09.26"]
[EventType "team-tourn"]
[EventCountry "SRB"]
[SourceTitle "playchess.com"]
[Source "ChessBase"]
[SourceQuality "1"]
[TimeControl "40/5400+30:1800+30"]

{[%evp 15,84,8,19,14,16,17,55,29,26,25,58,63,57,52,46,40,45,49,45,58,56,51,52,44,69,75,96,79,146,149,152,105,91,100,149,145,119,129,265,223,245,233,233,226,222,213,219,175,166,164,157,128,241,218,268,268,330,339,540,430,441,291,506,225,231,201,193,0,0,0,0]} 1. e4 {[%emt 0:00:03]} e5 {[%emt 0:00:08]} 2. Nf3 {[%emt 0:00:08]} Nc6 {[%emt 0:00:09]} 3. Bb5 {[%emt 0:00:08]} a6 {[%emt 0:00:08]} 4. Ba4 {[%emt 0:00:07]} Nf6 {[%emt 0:00:07]} 5. O-O {[%emt 0:00:10]} Be7 {[%emt 0:00:07]} 6. d3 {[%emt 0:01:17]} b5 {[%emt 0:00:24]} 7. Bb3 {[%emt 0:00:07]} d6 {[%emt 0:02:41]} 8. c3 {[%emt 0:00:17]} O-O {[%emt 0:00:14]} 9. h3 {[%emt 0:00:06]} Bb7 {[%emt 0:01:11]} 10. Nbd2 {[%emt 0:00:45][%cal Bb1d2,Bd2f1,Bf1e3,Be3g4][%mdl 32]} Nd7 {[%emt 0:02:55]} 11. Bc2 {[%emt 0:02:35] White is slightly better.} Bf6 {[%emt 0:03:40]} 12. Re1 {[%emt 0:04:19]} Nc5 {[%emt 0:06:45]} 13. Nf1 {[%emt 0:01:47]} Ne6 {[%emt 0:00:42]} 14. Ne3 {[%emt 0:03:06]} g6 {[%emt 0:00:37]} 15. Bb3 {[%emt 0:00:57]} Bg7 {[%emt 0:02:29]} 16. Bxe6 {[%emt 0:03:18]} fxe6 {[%emt 0:00:05]} 17. Ng4 {[%emt 0:00:06]} Qd7 {[%emt 0:09:20]} 18. Bh6 {[%emt 0:02:10]} Rae8 {[%emt 0:06:27]} 19. Qe2 {[%emt 0:08:40]} Qe7 {[%emt 0:05:32]} 20. Qe3 {[%emt 0:05:29]} Nb8 {[%emt 0:03:33]} 21. a4 {[%emt 0:03:49]} c5 {[%emt 0:14:38]} (21... Nc6 $142) 22. axb5 $16 {[%emt 0:01:30]} axb5 {[%emt 0:00:05]} 23. Bxg7 {[%emt 0:11:42]} (23. d4 $142 {dxc5 is the strong threat.} exd4 24. cxd4 Rxf3 25. Qxf3 Bxd4 26. Qf4) 23... Qxg7 {[%emt 0:02:21]} 24. d4 {[%emt 0:00:30]} cxd4 {[%emt 0:09:29]} ({Black should play} 24... exd4 25. cxd4 c4) 25. cxd4 {[%emt 0:00:12]} h5 {[%emt 0:00:04] [#]} 26. Ngh2 {[%emt 0:02:20]} (26. Nh6+ $6 Kh8 $15) 26... Rf4 {[%emt 0:07:04]} (26... Nc6 $16) 27. dxe5 {[%emt 0:01:41]} dxe5 {[%emt 0:00:59][%cal Bd6e5,Be5d4,Bd4d3,Bd3d2][%mdl 32]} 28. Qc5 {[%emt 0:12:03]} Nc6 {[%emt 0:03:13]} 29. Qxb5 {[%emt 0:01:54]} Ref8 {[%emt 0:00:19]} 30. Rac1 {[%emt 0:03:09]} Nd4 {[%emt 0:02:56]} 31. Nxd4 {[%emt 0:03:04]} (31. Qxe5 Qxe5 32. Nxe5 Rxe4) 31... exd4 {[%emt 0:00:08]} 32. f3 {[%emt 0:00:05]} R4f7 {[%emt 0:01:19]} 33. Red1 {[%emt 0:01:53] White is more active.} Qh6 {[%emt 0:04:14]} (33... e5 $16 {was worth a try.} 34. Rc5 Re7) 34. Qe5 $18 {[%emt 0:04:44]} d3 {[%emt 0:04:30]} 35. Qxe6 {[%emt 0:08:43]} d2 {[%emt 0:01:38]} 36. Rc3 {[%emt 0:01:28] Wards off Qe3+} Rd8 {[%emt 0:03:05]} (36... Qg5 {might work better.} 37. Nf1 Kh8 38. Rxd2 (38. Nxd2 Rf6 $18) 38... Qf6) 37. Nf1 {[%emt 0:00:46]} Qf4 {[%emt 0:00:38] Dodges Rc7} 38. g3 {[%emt 0:06:47]} Qb8 {[%emt 0:01:51] [#]} (38... Qf6 {keeps fighting.} 39. Qxf6 Rxf6 40. Rxd2 Rdf8) 39. Kg2 {[%emt 0:00:31]} (39. Qxg6+ $142 Rg7 40. Qb6 (40. Qxh5 Rxg3+ 41. Kf2 Rg7 $18)) 39... Rd6 {[%emt 0:01:21]} 40. Qb3 {[%emt 0:02:37]} Qd8 {[%emt 0:00:31]} 41. Rc2 $2 {[%emt 0:32:35]} (41. Ne3 $18 {Black must now prevent Nc4.} Rd4 42. Nc4) 41... Ba6 $11 {[%emt 0:31:54]} 42. Nxd2 {[%emt 0:00:00]} (42. Rdxd2 $2 {perishes.} Bxf1+ 43. Kxf1 Rxd2 44. Rxd2 Qxd2 $19) 42... Bd3 $1 {[%emt 0:00:00] Weighted Error Value: White=0.44/Black=0.42.  Missed win:     	White=1     	---        Mistake:       	White=2     	Black=6      Inaccurate:     	White=2     	Black=2      OK:         	White=16    	Black=6      Best:        	---       	Black=2      Strong:       	---       	Black=1} 1/2-1/2

[Event "Serbian League 2024"]
[Site "Bajina Basta"]
[Date "2024.09.29"]
[Round "3.21"]
[White "Ozsakallioglu, Okan"]
[Black "Nenezic, Marko"]
[Result "1-0"]
[ECO "B06"]
[WhiteElo "2349"]
[BlackElo "2492"]
[Annotator "TA"]
[PlyCount "71"]
[EventDate "2024.09.26"]
[EventType "team-tourn"]
[EventCountry "SRB"]
[SourceTitle "playchess.com"]
[Source "ChessBase"]
[SourceQuality "1"]
[TimeControl "40/5400+30:1800+30"]

{[%evp 9,71,39,41,25,31,14,54,44,73,50,56,53,62,69,88,62,187,154,185,172,176,167,201,201,215,194,259,239,290,141,152,156,145,156,195,199,201,182,219,151,150,125,208,201,170,162,302,315,352,330,412,420,411,382,498,490,697,693,5102,2966,29974,29975,29964,12665]} 1. e4 {[%emt 0:00:01]} g6 {[%emt 0:00:30]} 2. d4 {[%emt 0:00:04]} Bg7 {[%emt 0:00:10]} 3. Nc3 {[%emt 0:00:04]} d6 {[%emt 0:00:14]} 4. Be3 {[%emt 0:00:04]} a6 {[%emt 0:00:18]} 5. h4 {[%emt 0:00:32]} h5 {[%emt 0:04:31]} 6. Nh3 {[%emt 0:00:36]} Nf6 {[%emt 0:05:37]} 7. Ng5 {[%emt 0:00:49]} c6 {[%emt 0:00:59]} 8. f3 {[%emt 0:12:45] Weiß steht etwas besser.} b5 {[%emt 0:03:05][%cal Bb7b5,Bb5b4][%mdl 32]} 9. a4 {[%emt 0:05:20][%cal Ra4b5] axb5 wäre nun fies.} b4 {[%emt 0:10:24]} 10. Ne2 {[%emt 0:05:08]} e6 {[%emt 0:01:47]} 11. Nf4 {[%emt 0:01:11]} Qe7 {[%emt 0:00:51]} 12. a5 {[%emt 0:04:49] Weiß hat aktiveres Spiel. Die schwarzen Türme stehen passiv.} Nbd7 {[%emt 0:03:21]} (12... c5 $14) 13. Qd2 {[%emt 0:05:39][%cal Og5e6]} O-O {[%emt 0:05:42] [#]} 14. Ngxe6 $1 {[%emt 0:03:28][%mdl 512]} fxe6 {[%emt 0:01:49]} 15. Nxg6 {[%emt 0:00:04]} Qe8 {[%emt 0:04:24]} 16. Nxf8 {[%emt 0:01:24]} Bxf8 {[%emt 0:00:04]} 17. Bh6 {[%emt 0:00:48]} Qg6 {[%emt 0:08:15] [#]} (17... e5 $142 18. O-O-O Qe6 19. Bxf8 Kxf8 20. dxe5 (20. Qxb4 Rb8 $18) 20... Nxe5) 18. Bxf8 $1 $18 {[%emt 0:00:06]} Qg3+ {[%emt 0:00:12]} 19. Kd1 {[%emt 0:00:26]} (19. Ke2 $18 {und der Rest ist Schweigen.} Nxf8 20. Qg5+ (20. Qxb4 Ng6 $18) 20... Qxg5 21. hxg5) 19... Kxf8 $16 {[%emt 0:00:39]} 20. Rh3 {[%emt 0:01:22]} Qg7 {[%emt 0:00:29]} 21. Qxb4 {[%emt 0:01:33]} c5 {[%emt 0:01:01]} 22. dxc5 {[%emt 0:00:43]} Nxc5 {[%emt 0:01:22]} 23. Qd4 {[%emt 0:01:25]} Qe7 {[%emt 0:05:14]} 24. e5 {[%emt 0:02:24]} dxe5 {[%emt 0:00:47]} 25. Qxe5 {[%emt 0:00:14]} Bb7 {[%emt 0:00:58]} (25... Ncd7 $16 26. Qe3 Qd6+ 27. Kc1 Nd5) 26. Ra3 {[%emt 0:00:31]} Rd8+ {[%emt 0:03:27]} 27. Bd3 {[%emt 0:00:34]} Bd5 {[%emt 0:05:16]} (27... Rd5 {kämpft weiter.} 28. Qf4 Kf7) 28. Rg3 $18 {[%emt 0:01:08][%cal Bh3g3,Bg3g7,Bg7g6,Bg6f6][%mdl 32]} Ncd7 {[%emt 0:09:31]} 29. Qg5 {[%emt 0:01:31] Zielt auf Qh6+ ab.} Rb8 {[%emt 0:00:20]} 30. Qh6+ {[%emt 0:07:35]} (30. Bxa6 Qb4 $16) 30... Ke8 {[%emt 0:00:11]} 31. Qh8+ {[%emt 0:02:17]} (31. Bxa6 Qd6 32. Qh8+ (32. Qg6+ $2 Kd8 $19) 32... Nf8 $11) 31... Nf8 {[%emt 0:00:34]} 32. Rc3 {[%emt 0:01:50]} (32. Bxa6 Qd6 33. Rd3 Rxb2 $11) 32... e5 {[%emt 0:04:17]} (32... Kd8 $142 33. Rg7 (33. Bxa6 Ne8 $18) 33... Qb4) 33. Rg7 {[%emt 0:00:26]} (33. Bxa6 Qd6 34. Bd3 Ke7 $16) 33... Qd6 {[%emt 0:02:14][%cal Od5f7]} 34. Rg6 {[%emt 0:02:02]} Ke7 {[%emt 0:01:32]} 35. Qg7+ {[%emt 0:00:12]} Bf7 {[%emt 0:00:25] [#]} 36. Rxf6 $1 {[%emt 0:00:05][%mdl 512] Gewichteter Fehlerwert: Weiß=0.13 (sehr präzise) /Schwarz=0.64.  Fehler:       	Weiß=1     	Schwarz=5     Ungenau:       	Weiß=1     	Schwarz=4     OK:         	Weiß=11    	Schwarz=3     Bester:       	Weiß=1     	Schwarz=2     Stark:        	Weiß=1     	---        Brilliant:      	Weiß=1     	---} 1-0

[Event "Serbian League 2024"]
[Site "Bajina Basta"]
[Date "2024.09.29"]
[Round "3.22"]
[White "Perunovic, Miodrag"]
[Black "Ljepic, Andrej"]
[Result "1-0"]
[ECO "D27"]
[WhiteElo "2347"]
[BlackElo "2326"]
[Annotator "RC"]
[PlyCount "73"]
[EventDate "2024.09.26"]
[EventType "team-tourn"]
[EventCountry "SRB"]
[SourceTitle "playchess.com"]
[Source "ChessBase"]
[SourceQuality "1"]
[TimeControl "40/5400+30:1800+30"]

1. d4 {[%emt 0:00:03]} d5 {[%emt 0:00:22]} 2. c4 {[%emt 0:00:08]} dxc4 {[%emt 0:00:07]} 3. Nf3 {[%emt 0:01:29]} Nf6 {[%emt 0:00:13]} 4. e3 {[%emt 0:00:18]} e6 {[%emt 0:00:32]} 5. Bxc4 {[%emt 0:00:08]} a6 {[%emt 0:00:09]} 6. O-O {[%emt 0:00:07]} c5 {[%emt 0:01:17]} 7. Bb3 {[%emt 0:00:18]} Nc6 {[%emt 0:01:30]} 8. Nc3 {[%emt 0:00:08]} cxd4 {[%emt 0:01:20]} 9. exd4 {[%emt 0:00:10]} Be7 {[%emt 0:00:40]} 10. Bg5 {[%emt 0:00:06]} O-O {[%emt 0:00:50]} 11. Qd2 {[%emt 0:00:07]} b6 {[%emt 0:03:19]} 12. Rad1 {[%emt 0:02:27]} Bb7 {[%emt 0:03:44]} 13. d5 {[%emt 0:13:57]} exd5 {[%emt 0:06:03]} 14. Qf4 {[%emt 0:07:40]} Qb8 {[%emt 0:16:06]} 15. Qh4 {[%emt 0:00:46]} h6 {[%emt 0:11:24]} 16. Bxh6 {[%emt 0:13:21]} gxh6 {[%emt 0:04:42]} 17. Qxh6 {[%emt 0:00:59]} Ne5 {[%emt 0:23:11]} 18. Rfe1 {[%emt 0:23:29]} Nfg4 {[%emt 0:10:30]} 19. Qh5 {[%emt 0:00:30]} Bf6 {[%emt 0:01:43]} 20. Nxe5 {[%emt 0:07:25]} Nxe5 {[%emt 0:00:05]} 21. Nxd5 {[%emt 0:00:53]} Bxd5 {[%emt 0:01:23]} 22. Rxd5 {[%emt 0:00:19]} Qc7 {[%emt 0:08:22]} 23. Rdxe5 {[%emt 0:09:47]} Bxe5 {[%emt 0:00:06]} 24. Rxe5 {[%emt 0:00:04]} Qc1+ {[%emt 0:00:10]} 25. Bd1 {[%emt 0:00:02]} Rfc8 {[%emt 0:00:12]} 26. Rg5+ {[%emt 0:04:55]} Kf8 {[%emt 0:00:07]} 27. Qh6+ {[%emt 0:05:49]} Ke7 {[%emt 0:00:09]} 28. Re5+ {[%emt 0:00:04]} Kd7 {[%emt 0:00:11]} 29. Rd5+ {[%emt 0:00:05]} Ke8 {[%emt 0:00:04]} 30. Qd6 {[%emt 0:02:25]} Rc5 {[%emt 0:00:03]} 31. Qe5+ {[%emt 0:00:10]} Kf8 {[%emt 0:00:11]} 32. Qh8+ {[%emt 0:00:03]} Ke7 {[%emt 0:00:28]} 33. Qxa8 {[%emt 0:00:29]} Ke6 {[%emt 0:00:38]} 34. Rd3 {[%emt 0:00:25]} Re5 {[%emt 0:00:26]} 35. g3 {[%emt 0:01:44]} Re1+ {[%emt 0:00:24]} 36. Kg2 {[%emt 0:00:01]} Rxd1 {[%emt 0:00:08]} 37. Qd5+ {[%emt 0:00:03]} 1-0

[Event "Serbian League 2024"]
[Site "Bajina Basta"]
[Date "2024.09.29"]
[Round "3.23"]
[White "Ivanovic, Dragutin"]
[Black "Radovanovic, Dusan"]
[Result "1-0"]
[ECO "A05"]
[WhiteElo "2308"]
[BlackElo "2293"]
[Annotator "RC"]
[PlyCount "93"]
[EventDate "2024.09.26"]
[EventType "team-tourn"]
[EventCountry "SRB"]
[SourceTitle "playchess.com"]
[Source "ChessBase"]
[SourceQuality "1"]
[TimeControl "40/5400+30:1800+30"]

1. Nf3 {[%emt 0:00:02]} Nf6 {[%emt 0:00:20]} 2. b3 {[%emt 0:00:17]} g6 {[%emt 0:00:43]} 3. Bb2 {[%emt 0:00:10]} Bg7 {[%emt 0:00:06]} 4. e4 {[%emt 0:02:23]} d6 {[%emt 0:01:28]} 5. Bc4 {[%emt 0:03:22]} O-O {[%emt 0:02:49]} 6. e5 {[%emt 0:02:48]} dxe5 {[%emt 0:27:15]} 7. Bxe5 {[%emt 0:04:27]} Nc6 {[%emt 0:01:05]} 8. Bb2 {[%emt 0:00:07]} a6 {[%emt 0:03:51]} 9. O-O {[%emt 0:00:57]} b5 {[%emt 0:02:36]} 10. Be2 {[%emt 0:00:15]} Bb7 {[%emt 0:00:10]} 11. c4 {[%emt 0:06:29]} bxc4 {[%emt 0:05:51]} 12. Bxc4 {[%emt 0:01:26]} Nb4 {[%emt 0:03:02]} 13. Nc3 {[%emt 0:10:24]} Nh5 {[%emt 0:05:44]} 14. d4 {[%emt 0:04:53]} e6 {[%emt 0:12:48]} 15. a3 {[%emt 0:04:03]} Nd5 {[%emt 0:01:39]} 16. Nxd5 {[%emt 0:02:08]} Bxd5 {[%emt 0:00:15]} 17. Bxd5 {[%emt 0:00:15]} Qxd5 {[%emt 0:00:39]} 18. Rc1 {[%emt 0:00:07]} Rab8 {[%emt 0:03:37]} 19. b4 {[%emt 0:00:35]} a5 {[%emt 0:03:42]} 20. Rc5 {[%emt 0:01:21]} Qa2 {[%emt 0:00:55]} 21. Qc2 {[%emt 0:01:35]} a4 {[%emt 0:05:21]} 22. Nd2 {[%emt 0:05:51]} Rfd8 {[%emt 0:05:16]} 23. Ra1 {[%emt 0:01:11]} Qxb2 {[%emt 0:00:13]} 24. Qxb2 {[%emt 0:00:06]} Bxd4 {[%emt 0:00:05]} 25. Rc3 {[%emt 0:05:42]} Nf4 {[%emt 0:00:18]} 26. Nb1 {[%emt 0:01:22]} Nd3 {[%emt 0:06:12]} 27. Qc2 {[%emt 0:00:13]} Nxf2 {[%emt 0:00:39]} 28. Kf1 {[%emt 0:00:06]} Ng4 {[%emt 0:02:24]} 29. h3 {[%emt 0:02:15]} Nf6 {[%emt 0:02:29]} 30. Ra2 {[%emt 0:01:23]} Nd5 {[%emt 0:00:59]} 31. Rd3 {[%emt 0:00:54]} e5 {[%emt 0:01:21]} 32. Nd2 {[%emt 0:00:21]} Rd6 {[%emt 0:00:53]} 33. Ne4 {[%emt 0:00:25]} Re6 {[%emt 0:00:06]} 34. Qc4 {[%emt 0:00:41]} c6 {[%emt 0:00:50]} 35. Re2 {[%emt 0:02:44]} Rbe8 {[%emt 0:01:41]} 36. Rxd4 {[%emt 0:02:33]} exd4 {[%emt 0:00:08]} 37. Qxd4 {[%emt 0:00:05]} f5 {[%emt 0:00:23]} 38. Nc3 {[%emt 0:00:19]} Ne3+ {[%emt 0:00:31]} 39. Kf2 {[%emt 0:01:11]} f4 {[%emt 0:00:08]} 40. Kg1 {[%emt 0:01:07]} g5 {[%emt 0:00:39]} 41. Nxa4 {[%emt 0:30:50]} Kf7 {[%emt 0:16:17]} 42. Nc5 {[%emt 0:00:00]} Re5 {[%emt 0:00:34]} 43. Qd7+ {[%emt 0:00:00]} R8e7 {[%emt 0:00:18]} 44. Qxc6 {[%emt 0:00:00]} Rd5 {[%emt 0:00:57]} 45. Re1 {[%emt 0:00:00]} Rd2 {[%emt 0:00:41]} 46. Ne4 {[%emt 0:00:00]} Rxg2+ {[%emt 0:04:56]} 47. Kh1 {[%emt 0:00:00]} 1-0

[Event "Serbian League 2024"]
[Site "Bajina Basta"]
[Date "2024.09.29"]
[Round "3.24"]
[White "Marcetic, Nikola"]
[Black "Zivanovic, Bojan"]
[Result "0-1"]
[ECO "D02"]
[WhiteElo "2290"]
[BlackElo "2161"]
[Annotator "RC"]
[PlyCount "114"]
[EventDate "2024.09.26"]
[EventType "team-tourn"]
[EventCountry "SRB"]
[SourceTitle "playchess.com"]
[Source "ChessBase"]
[SourceQuality "1"]
[TimeControl "40/5400+30:1800+30"]

1. d4 {[%emt 0:00:04]} Nf6 {[%emt 0:00:18]} 2. Nf3 {[%emt 0:00:24]} d5 {[%emt 0:00:07]} 3. Bf4 {[%emt 0:00:09]} c5 {[%emt 0:01:46]} 4. e3 {[%emt 0:00:32]} Nc6 {[%emt 0:00:54]} 5. Nbd2 {[%emt 0:00:49]} Bg4 {[%emt 0:02:19]} 6. c3 {[%emt 0:05:07]} e6 {[%emt 0:07:53]} 7. Bb5 {[%emt 0:07:56]} Qb6 {[%emt 0:09:40]} 8. Qa4 {[%emt 0:04:20]} Bxf3 {[%emt 0:10:46]} 9. Nxf3 {[%emt 0:02:35]} a6 {[%emt 0:00:20]} 10. Bxc6+ {[%emt 0:05:24]} Qxc6 {[%emt 0:00:09]} 11. Qxc6+ {[%emt 0:04:55]} bxc6 {[%emt 0:00:07]} 12. O-O {[%emt 0:10:13]} Be7 {[%emt 0:14:47]} 13. Ne5 {[%emt 0:08:05]} Rc8 {[%emt 0:01:41]} 14. Rfc1 {[%emt 0:06:20]} Nd7 {[%emt 0:02:24]} 15. Nxd7 {[%emt 0:06:13]} Kxd7 {[%emt 0:00:12]} 16. dxc5 {[%emt 0:04:40]} Bxc5 {[%emt 0:01:04]} 17. c4 {[%emt 0:01:11]} Bd6 {[%emt 0:03:00]} 18. Bxd6 {[%emt 0:01:29]} Kxd6 {[%emt 0:00:08]} 19. Rc3 {[%emt 0:02:39]} Rb8 {[%emt 0:04:56]} 20. b3 {[%emt 0:02:05]} Rhc8 {[%emt 0:06:31]} 21. Rd1 {[%emt 0:01:59]} f5 {[%emt 0:11:11]} 22. f4 {[%emt 0:01:01]} a5 {[%emt 0:01:59]} 23. Kf2 {[%emt 0:04:36]} a4 {[%emt 0:01:32]} 24. Kf3 {[%emt 0:04:15]} axb3 {[%emt 0:02:56]} 25. axb3 {[%emt 0:00:04]} Rb4 {[%emt 0:02:48]} 26. h3 {[%emt 0:06:37]} Rcb8 {[%emt 0:02:28]} 27. Rdd3 {[%emt 0:00:19]} c5 {[%emt 0:02:00]} 28. g4 {[%emt 0:01:05]} g6 {[%emt 0:00:25]} 29. g5 {[%emt 0:01:50]} Kc6 {[%emt 0:01:16]} 30. h4 {[%emt 0:00:49]} Ra8 {[%emt 0:02:29]} 31. cxd5+ {[%emt 0:03:24]} exd5 {[%emt 0:00:06]} 32. Rd2 {[%emt 0:01:11]} Ra3 {[%emt 0:00:43]} 33. Rdd3 {[%emt 0:01:07]} Kd6 {[%emt 0:01:16]} 34. h5 {[%emt 0:00:33]} gxh5 {[%emt 0:01:32]} 35. Kg3 {[%emt 0:00:07]} d4 {[%emt 0:00:58]} 36. exd4 {[%emt 0:00:39]} cxd4 {[%emt 0:00:05]} 37. Kh4 {[%emt 0:00:11]} Kd5 {[%emt 0:01:56]} 38. Rc7 {[%emt 0:00:49]} Ke4 {[%emt 0:00:47]} 39. Rd1 {[%emt 0:00:38]} Rbxb3 {[%emt 0:00:39]} 40. Re7+ {[%emt 0:00:07]} Kd5 {[%emt 0:00:15]} 41. Re5+ {[%emt 0:30:16]} Kc4 {[%emt 0:30:22]} 42. Rc1+ {[%emt 0:02:37]} Rc3 {[%emt 0:02:15]} 43. Rh1 {[%emt 0:00:59]} d3 {[%emt 0:00:44]} 44. Ree1 {[%emt 0:01:05]} d2 {[%emt 0:00:47]} 45. Rd1 {[%emt 0:00:01]} Rd3 {[%emt 0:00:26]} 46. Rh2 {[%emt 0:00:25]} Kc3 {[%emt 0:00:14]} 47. Kxh5 {[%emt 0:00:00]} Kc2 {[%emt 0:00:00]} 48. Rdh1 {[%emt 0:00:00]} Rh3+ {[%emt 0:00:00]} 49. Rxh3 {[%emt 0:00:00]} Rxh3+ {[%emt 0:00:00]} 50. Rxh3 {[%emt 0:00:00]} d1=Q+ {[%emt 0:00:00]} 51. Kh6 {[%emt 0:00:00]} Qd7 {[%emt 0:00:00]} 52. g6 {[%emt 0:00:00]} hxg6 {[%emt 0:00:00]} 53. Kxg6 {[%emt 0:00:00]} Qe6+ {[%emt 0:00:00]} 54. Kg5 {[%emt 0:00:00]} Qg8+ {[%emt 0:00:00]} 55. Kf6 {[%emt 0:00:00]} Qg4 {[%emt 0:00:00]} 56. Rh2+ {[%emt 0:00:00]} Kd3 {[%emt 0:00:00]} 57. Ke5 {[%emt 0:00:00]} Ke3 {[%emt 0:00:00]} 0-1

[Event "Serbian League 2024"]
[Site "Bajina Basta"]
[Date "2024.09.29"]
[Round "3.25"]
[White "Andreikin, Dmitry"]
[Black "Hovhannisyan, Robert"]
[Result "1/2-1/2"]
[ECO "D35"]
[WhiteElo "2729"]
[BlackElo "2619"]
[Annotator "TA"]
[PlyCount "79"]
[EventDate "2024.09.26"]
[EventType "team-tourn"]
[EventCountry "SRB"]
[SourceTitle "playchess.com"]
[Source "ChessBase"]
[SourceQuality "1"]
[TimeControl "40/5400+30:1800+30"]

{[%evp 18,79,59,52,63,55,53,43,61,48,67,49,60,59,62,47,64,65,62,48,54,46,51,46,61,35,41,23,36,0,0,0,13,13,21,13,35,26,37,10,13,0,0,0,0,-10,0,0,0,0,10,0,0,0,0,0,0,0,0,0,0,0,0,0]} 1. d4 {[%emt 0:00:05]} d5 {[%emt 0:00:08]} 2. c4 {[%emt 0:00:06]} e6 {[%emt 0:00:06]} 3. Nc3 {[%emt 0:00:21]} Nf6 {[%emt 0:00:08]} 4. cxd5 {[%emt 0:00:15]} exd5 {[%emt 0:00:08]} 5. Bg5 {[%emt 0:00:05]} c6 {[%emt 0:00:13]} 6. e3 {[%emt 0:00:23]} Bf5 {[%emt 0:00:14]} 7. Qf3 {[%emt 0:00:39]} Bg6 {[%emt 0:00:17]} 8. Bxf6 {[%emt 0:00:24]} Qxf6 {[%emt 0:00:06]} 9. Qxf6 {[%emt 0:00:05]} gxf6 {[%emt 0:00:05]} 10. Nf3 {[%emt 0:00:27]} Nd7 {[%emt 0:00:14] D35: Damegambiet Geweigerd: Ruilvariant.} 11. Nh4 {[%emt 0:00:16] OK} Bb4 {[%emt 0:00:35]} 12. Kd2 {[%emt 0:09:48]} a5 {[%emt 0:00:59] Wit staat iets beter.} 13. a3 {[%emt 0:14:25] OK} Bxc3+ {[%emt 0:00:50]} 14. bxc3 {[%emt 0:02:08]} b5 {[%emt 0:02:37] OK} 15. a4 {[%emt 0:00:12] OK} bxa4 {[%emt 0:00:54] OK} 16. Rxa4 {[%emt 0:03:38]} Ke7 {[%emt 0:00:41]} 17. Be2 {[%emt 0:03:08] OK} Nb6 $146 {[%emt 0:16:59]} ({Predecessor:} 17... Rhb8 18. Nxg6+ fxg6 19. Rha1 Rb2+ 20. Ke1 f5 21. Rxa5 Rxa5 22. Rxa5 Rb3 23. Kd2 Rb2+ {½-½ Lukyanenko,V (2339)-Liskevich,V (2352) UKR-ch33 email 2022}) 18. Ra2 {[%emt 0:00:22] OK} a4 {[%emt 0:02:02] OK} 19. Nxg6+ {[%emt 0:09:50]} fxg6 {[%emt 0:07:17]} 20. Rb1 {[%emt 0:02:51] OK} Rhb8 {[%emt 0:01:03] OK} 21. Kc1 {[%emt 0:09:36] Wit is actiever. Onnauwkeurig} Kd6 {[%emt 0:16:20] OK} 22. Bd1 {[%emt 0:04:15][%cal Od1a4]} Ra6 {[%emt 0:03:31] OK} 23. Rxa4 {[%emt 0:14:15]} Nxa4 {[%emt 0:00:06]} 24. Rxb8 {[%emt 0:00:05] OK} Nxc3 $14 {[%emt 0:00:05][%mdl 4096] [#] Eindspel. met als doel voor ...Ra1+. KRB-KRN. OK} 25. Bc2 {[%emt 0:00:15] OK} Ra7 {[%emt 0:08:46] Stopt Rb7} 26. Rd8+ {[%emt 0:02:04]} Rd7 {[%emt 0:02:53]} 27. Rf8 {[%emt 0:00:17] OK} f5 {[%emt 0:01:10] OK} 28. f3 {[%emt 0:05:01] Remt Ne4. Onnauwkeurig} Nb5 {[%emt 0:02:54] De stelling is in evenwicht.} 29. h4 {[%emt 0:04:32][%cal Oh4h5]} Nc7 {[%emt 0:00:34] OK} 30. h5 {[%emt 0:02:24] Zwart moet nu hxg6 voorkomen.} Ne6 {[%emt 0:02:00] OK} 31. Rh8 {[%emt 0:00:22] OK} c5 {[%emt 0:06:08][%cal Rc5d4]} 32. dxc5+ {[%emt 0:02:07]} Kxc5 {[%emt 0:00:27]} 33. Kd2 {[%emt 0:02:18]} d4 {[%emt 0:02:43] OK} 34. Rg8 {[%emt 0:03:42][%cal Rh5g6]} Rd8 {[%emt 0:03:45] OK} 35. Rxd8 {[%emt 0:01:06] OK} Nxd8 {[%emt 0:00:04]} 36. g4 {[%emt 0:03:08]} fxg4 {[%emt 0:00:57] OK} 37. fxg4 {[%emt 0:00:12]} gxh5 {[%emt 0:00:19] OK} 38. gxh5 {[%emt 0:00:05]} h6 {[%emt 0:00:35] OK} 39. Kd3 {[%emt 0:00:08]} dxe3 {[%emt 0:00:10]} 40. Kxe3 {[%emt 0:00:05] Blunder waarde: Wit=0.06 (foutloos) /Zwart=0.04 (foutloos) .  Onnauwkeurig:    	Wit=2      	---        OK:         	Wit=11     	Zwart=15} 1/2-1/2